bitfinex/quotes_SOLUSD_20250410
["timestamp","ask_amount","ask_price","bid_price","bid_amount"]
[1744255014952,16.28125108,115.8,115.79,77.74711957]
[1744255015257,16.28125108,115.8,115.79,0.0001]
[1744255015956,24.91675108,115.8,115.79,0.0001]
[1744255017257,41.19800216,115.8,115.79,0.0001]
[1744255017552,1.5515,115.79,115.74,77.68411957]
[1744255017759,16.28125108,115.75,115.74,77.74711957]
[1744255017940,24.92055108,115.75,115.74,77.74711957]
[1744255018147,24.92055108,115.75,115.74,0.063]
[1744255019240,34.73458602,115.75,115.74,0.063]
[1744255020648,56.33278602,115.75,115.7,77.68411957]
[1744255020958,30.2375,115.75,115.7,77.68411957]
[1744255021458,26.09528602,115.74,115.7,77.68411957]
[1744255021632,26.09528602,115.73,115.7,77.68411957]
[1744255022160,34.73658602,115.73,115.7,77.68411957]
[1744255022460,8.6413,115.73,115.7,77.68411957]
[1744255022858,26.09528602,115.74,115.7,77.68411957]
[1744255022859,8.6396,115.75,115.71,26.09528602]
[1744255023059,8.6396,115.75,115.72,26.09528602]
[1744255023263,8.6389,115.76,115.7,86.32711957]
[1744255023563,8.6389,115.76,115.72,26.09528602]
[1744255023855,8.6381,115.77,115.73,26.09528602]
[1744255024155,23.1429,115.79,115.73,86.32471957]
[1744255024156,56.32298602,115.79,115.73,86.32471957]
[1744255024363,26.09528602,115.78,115.73,112.42000559]
[1744255024547,26.09528602,115.78,115.73,77.68411957]
[1744255024860,26.09528602,115.78,115.73,112.42010559]
[1744255025161,56.32298602,115.79,115.73,86.32481957]
[1744255025364,30.2277,115.79,115.74,26.09528602]
[1744255025563,56.32298602,115.79,115.74,26.09528602]
[1744255026067,8.6378,115.77,115.73,103.77940559]
[1744255026662,34.73308602,115.77,115.73,77.68411957]
[1744255027059,26.09528602,115.76,115.73,77.68411957]
[1744255027244,26.09528602,115.75,115.73,77.68411957]
[1744255027444,26.09528602,115.74,115.69,26.09528602]
[1744255027650,26.09528602,115.74,115.69,103.77940559]
[1744255027855,26.09528602,115.73,115.69,77.68411957]
[1744255028173,8.6415,115.72,115.69,77.68411957]
[1744255028842,8.6408,115.73,115.69,77.68411957]
[1744255029043,8.6408,115.73,115.69,103.77940559]
[1744255029243,26.09528602,115.72,115.69,77.68411957]
[1744255029445,26.09528602,115.7,115.69,77.68411957]
[1744255029651,26.09528602,115.7,115.67,0.063]
[1744255029862,26.09528602,115.68,115.67,0.063]
[1744255030280,34.73978602,115.68,115.67,0.063]
[1744255030646,8.6445,115.68,115.67,0.063]
[1744255031569,8.6441,115.69,115.67,0.063]
[1744255031971,34.73938602,115.69,115.67,0.063]
[1744255032271,26.09528602,115.68,115.67,0.063]
[1744255032655,34.73938602,115.69,115.67,0.063]
[1744255032965,26.09528602,115.68,115.67,0.063]
[1744255033170,52.19057204,115.68,115.65,0.063]
[1744255033343,26.09528602,115.66,115.65,0.063]
[1744255034182,8.646,115.66,115.65,0.063]
[1744255034477,30.261,115.66,115.62,0.063]
[1744255034772,26.09528602,115.65,115.62,0.063]
[1744255035069,30.261,115.66,115.62,0.063]
[1744255035262,30.261,115.66,115.62,0.0001]
[1744255035263,26.37960916,115.63,115.62,0.0001]
[1744255035462,26.09528602,115.63,115.62,0.0001]
[1744255035684,6.3346,115.64,115.62,0.0001]
[1744255036045,26.09528602,115.63,115.62,0.0001]
[1744255036249,34.74348602,115.63,115.62,0.0001]
[1744255036746,8.6482,115.63,115.62,0.0001]
[1744255036967,34.74348602,115.63,115.62,0.0001]
[1744255038367,35.02780916,115.63,115.62,0.0001]
[1744255038979,79.77274404,115.63,115.62,0.0001]
[1744255039288,53.67745802,115.63,115.62,0.0001]
[1744255040083,79.77274404,115.63,115.62,0.0001]
[1744255040571,35.02780916,115.63,115.62,0.0001]
[1744255043376,34.88564759,115.63,115.62,0.0001]
[1744255043877,34.74348602,115.63,115.62,0.0001]
[1744255045068,8.6482,115.63,115.62,0.0001]
[1744255045271,8.6467,115.65,115.62,0.0001]
[1744255045883,34.74198602,115.65,115.62,0.0001]
[1744255046475,26.09528602,115.64,115.62,0.0001]
[1744255046657,8.6482,115.63,115.62,0.0001]
[1744255049682,34.74348602,115.63,115.62,0.0001]
[1744255051191,8.6478,115.64,115.62,0.0001]
[1744255051973,8.646,115.66,115.62,0.0001]
[1744255052177,8.646,115.66,115.62,26.09538602]
[1744255052686,8.6456,115.67,115.63,26.09528602]
[1744255052861,34.74008602,115.68,115.63,34.74348602]
[1744255053062,34.74008602,115.68,115.63,112.42760559]
[1744255053357,8.6448,115.68,115.65,26.09528602]
[1744255053557,8.6448,115.68,115.65,103.77940559]
[1744255053980,0.03,115.69,115.66,26.09528602]
[1744255054384,0.03,115.69,115.65,103.77940559]
[1744255054603,26.09528602,115.68,115.63,83.84991957]
[1744255054767,34.76918602,115.69,115.64,26.09528602]
[1744255055085,8.6739,115.69,115.65,26.09528602]
[1744255055474,34.76918602,115.69,115.63,92.49781957]
[1744255055689,34.76918602,115.69,115.64,26.09528602]
[1744255055876,8.6739,115.69,115.65,26.09528602]
[1744255056472,0.03,115.69,115.65,26.09528602]
[1744255056673,26.12528602,115.69,115.65,34.74198602]
[1744255056872,0.03,115.69,115.65,34.74198602]
[1744255057786,0.03,115.69,115.65,112.42610559]
[1744255058290,0.03,115.69,115.65,103.77940559]
[1744255058692,0.03,115.69,115.65,112.42580559]
[1744255059370,0.03,115.69,115.66,26.09528602]
[1744255061204,26.09528602,115.67,115.63,77.68411957]
[1744255061376,26.09528602,115.66,115.62,0.0001]
[1744255061690,26.09528602,115.65,115.62,0.0001]
[1744255061868,26.37960916,115.68,115.62,0.0001]
[1744255062072,26.09528602,115.66,115.62,0.0001]
[1744255062276,26.09528602,115.65,115.62,0.0001]
[1744255062480,26.09528602,115.64,115.62,0.0001]
[1744255062679,26.09528602,115.65,115.62,0.0001]
[1744255062999,8.6475,115.64,115.62,0.0001]
[1744255063692,34.74278602,115.64,115.62,0.0001]
[1744255063995,26.09528602,115.63,115.62,0.0001]
[1744255064973,34.74348602,115.63,115.62,0.0001]
[1744255065402,35.02780916,115.63,115.62,0.0001]
[1744255065775,61.12309518,115.63,115.62,0.0001]
[1744255065989,67.76719518,115.63,115.62,0.0001]
[1744255067282,86.41684404,115.63,115.62,0.0001]
[1744255070479,18.933972,115.62,115.58,0.063]
[1744255070679,26.09528602,115.59,115.58,0.063]
[1744255072613,34.74648602,115.59,115.58,0.063]
[1744255073497,8.6512,115.59,115.58,0.063]
[1744255073703,34.74648602,115.59,115.58,0.063]
[1744255075384,25.00529983,115.59,115.58,0.063]
[1744255075988,25.28962297,115.59,115.57,0.063]
[1744255076305,16.35409983,115.58,115.57,0.063]
[1744255076609,16.35409983,115.58,115.5,1.5624]
[1744255076610,0.28432314,115.57,115.5,1.5624]
[1744255076787,16.35409983,115.55,115.5,1.5624]
[1744255076985,8.655,115.54,115.5,17.91649983]
[1744255077203,8.6546,115.55,115.51,16.35409983]
[1744255077412,8.6546,115.55,115.52,16.35409983]
[1744255078206,8.6535,115.56,115.52,16.35409983]
[1744255078584,8.6531,115.57,115.53,16.35409983]
[1744255079506,25.00719983,115.57,115.52,94.0382194]
[1744255080009,16.35409983,115.56,115.52,94.0382194]
[1744255080314,8.6542,115.55,115.52,77.68411957]
[1744255081217,25.00829983,115.55,115.52,77.68411957]
[1744255081397,46.64389983,115.55,115.52,77.68411957]
[1744255082326,25.00829983,115.55,115.52,77.68411957]
[1744255082527,25.00799983,115.56,115.52,77.68411957]
[1744255083391,34.83036087,115.56,115.52,77.68411957]
[1744255085128,34.59595611,115.56,115.52,77.68411957]
[1744255086429,26.17646087,115.55,115.52,77.68411957]
[1744255086602,26.17646087,115.55,115.48,77.68411957]
[1744255086603,8.6565,115.52,115.48,77.68411957]
[1744255087111,26.17646087,115.53,115.49,26.17646087]
[1744255087504,26.17646087,115.53,115.48,103.86058044]
[1744255087712,26.17646087,115.52,115.48,77.68411957]
[1744255088225,30.57682314,115.54,115.46,0.063]
[1744255088437,26.17646087,115.52,115.47,26.17646087]
[1744255088620,26.17646087,115.52,115.46,0.063]
[1744255088825,26.17646087,115.52,115.47,26.17646087]
[1744255089327,26.17646087,115.51,115.46,0.063]
[1744255089731,0.28432314,115.53,115.46,0.063]
[1744255089919,26.17646087,115.51,115.46,26.23946087]
[1744255090955,8.658,115.5,115.46,26.23946087]
[1744255091243,8.658,115.5,115.46,0.063]
[1744255091555,34.83446087,115.5,115.46,0.063]
[1744255092207,8.658,115.5,115.46,0.063]
[1744255092732,8.658,115.5,115.47,26.17646087]
[1744255092936,8.6572,115.51,115.47,103.86058044]
[1744255093242,34.83366087,115.51,115.47,77.68411957]
[1744255093610,8.6572,115.51,115.47,103.86058044]
[1744255095341,8.6572,115.51,115.47,77.68411957]
[1744255095546,8.6572,115.51,115.47,103.86058044]
[1744255096537,8.6569,115.52,115.48,26.17646087]
[1744255096915,26.17646087,115.49,115.46,0.063]
[1744255097114,34.83556087,115.49,115.46,0.063]
[1744255097338,8.6591,115.49,115.46,0.063]
[1744255097544,34.83556087,115.49,115.46,0.063]
[1744255097751,26.17646087,115.47,115.46,0.063]
[1744255098128,26.46078401,115.47,115.46,0.0001]
[1744255098446,49.42711608,115.47,115.38,9.82]
[1744255098638,26.17646087,115.4,115.37,77.68411957]
[1744255098828,26.17646087,115.39,115.36,2.93370933]
[1744255099135,34.84346087,115.38,115.36,2.43370933]
[1744255099339,26.17646087,115.37,115.31,26.93368381]
[1744255099546,0.28432314,115.37,115.31,26.93368381]
[1744255099725,26.17646087,115.33,115.31,26.93368381]
[1744255099920,0.28432314,115.37,115.31,26.93368381]
[1744255100115,26.17646087,115.37,115.31,35.60578381]
[1744255100321,34.84346087,115.38,115.33,26.17646087]
[1744255100618,8.667,115.38,115.32,26.17646087]
[1744255100819,34.84346087,115.38,115.33,26.17646087]
[1744255101025,8.6662,115.39,115.33,26.17646087]
[1744255101329,26.17646087,115.37,115.31,26.93368381]
[1744255101636,26.17646087,115.37,115.31,61.78234468]
[1744255101837,26.17646087,115.37,115.31,35.60588381]
[1744255102035,30.3318,115.39,115.31,26.93368381]
[1744255102241,30.3318,115.39,115.33,26.17646087]
[1744255102242,26.17646087,115.38,115.33,26.17646087]
[1744255103178,26.17646087,115.37,115.29,30.3566]
[1744255103442,26.17646087,115.35,115.3,26.17646087]
[1744255103749,26.17646087,115.36,115.31,26.17646087]
[1744255104425,26.17646087,115.35,115.29,86.35781957]
[1744255104620,34.84566087,115.35,115.29,86.35781957]
[1744255104825,26.17646087,115.34,115.29,86.35781957]
[1744255105252,26.17646087,115.34,115.29,112.53428044]
[1744255105431,8.6692,115.35,115.3,26.17646087]
[1744255105632,34.84566087,115.35,115.3,26.17646087]
[1744255105846,26.17646087,115.34,115.29,86.35781957]
[1744255106145,26.17646087,115.34,115.29,112.53428044]
[1744255106350,26.17646087,115.33,115.29,77.68411957]
[1744255106530,26.17646087,115.32,115.28,9.84]
[1744255106729,26.17646087,115.31,115.27,8.6748]
[1744255106943,26.17646087,115.31,115.26,34.85216087]
[1744255107133,36.6526,115.35,115.26,34.85216087]
[1744255107338,26.17646087,115.32,115.27,26.17646087]
[1744255107547,26.17646087,115.33,115.27,26.17646087]
[1744255107731,26.17646087,115.34,115.29,34.85016087]
[1744255107927,34.84646087,115.34,115.29,34.85016087]
[1744255108250,34.84646087,115.34,115.29,8.6737]
[1744255108433,8.6677,115.37,115.31,26.17646087]
[1744255108623,26.17646087,115.36,115.31,26.17646087]
[1744255108830,26.17646087,115.36,115.3,9.84]
[1744255109033,8.6677,115.37,115.31,26.17646087]
[1744255109231,26.17646087,115.36,115.31,26.17646087]
[1744255109737,34.84646087,115.34,115.3,9.84]
[1744255110537,8.67,115.34,115.3,36.01646087]
[1744255110753,26.17646087,115.35,115.3,44.68926087]
[1744255111131,30.3371,115.37,115.3,18.5128]
[1744255111332,26.17646087,115.35,115.3,44.68926087]
[1744255111739,26.17646087,115.36,115.32,8.6715]
[1744255112237,34.84416087,115.37,115.32,112.53208044]
[1744255112757,8.6677,115.37,115.32,112.53208044]
[1744255113137,27.9767,115.39,115.32,86.35561957]
[1744255113138,26.17646087,115.36,115.32,86.35561957]
[1744255113338,26.17646087,115.35,115.32,77.68411957]
[1744255113852,8.6696,115.35,115.32,77.68411957]
[1744255114058,26.17646087,115.34,115.3,87.52411957]
[1744255114232,30.3427,115.35,115.27,9.84]
[1744255114437,30.3427,115.35,115.28,34.85086087]
[1744255115041,26.17646087,115.33,115.28,34.85086087]
[1744255115247,30.3427,115.35,115.29,16.42445741]
[1744255115456,25.09515741,115.33,115.28,8.6744]
[1744255115643,25.09515741,115.33,115.28,77.68411957]
[1744255115957,8.6707,115.33,115.29,16.42445741]
[1744255116156,25.09515741,115.33,115.28,94.10857698]
[1744255116653,8.6707,115.33,115.28,77.68411957]
[1744255116857,16.42445741,115.33,115.28,86.35861957]
[1744255117060,16.42445741,115.33,115.28,102.78307698]
[1744255117239,16.42445741,115.32,115.28,77.68411957]
[1744255117754,16.42445741,115.33,115.28,86.35851957]
[1744255117957,16.42445741,115.33,115.28,102.78297698]
[1744255118159,0.5,115.32,115.28,16.42445741]
[1744255118668,0.5,115.32,115.26,9.84]
[1744255118874,9.1722,115.32,115.27,16.42445741]
[1744255119070,0.5,115.31,115.27,8.6752]
[1744255119291,0.5,115.31,115.28,16.42445741]
[1744255119765,0.5,115.3,115.26,18.5159]
[1744255120069,0.5,115.3,115.27,16.42445741]
[1744255120651,0.5,115.31,115.27,16.42445741]
[1744255120853,0.5,115.31,115.27,8.6745]
[1744255121048,0.5,115.31,115.27,25.09895741]
[1744255121254,0.5,115.31,115.28,16.42445741]
[1744255121454,9.1723,115.31,115.27,25.09895741]
[1744255121956,0.5,115.3,115.26,18.5156]
[1744255122270,0.5,115.3,115.26,26.26445741]
[1744255122469,0.5,115.29,115.26,9.84]
[1744255122851,9.1742,115.29,115.26,26.26445741]
[1744255123050,8.6742,115.29,115.26,26.26445741]
[1744255123252,0.5,115.28,115.24,81.2]
[1744255123580,0.5,115.27,115.23,25.10255741]
[1744255123764,0.5,115.27,115.24,16.42445741]
[1744255123962,0.5,115.28,115.23,8.6781]
[1744255124170,0.5,115.27,115.24,16.42445741]
[1744255124763,0.5,115.27,115.23,8.6781]
[1744255124961,9.1754,115.27,115.22,100.0787]
[1744255125162,0.5,115.27,115.24,16.42445741]
[1744255125363,9.1753,115.27,115.22,100.0787]
[1744255125579,9.1753,115.27,115.22,18.8787]
[1744255125783,25.59975741,115.27,115.22,35.30315741]
[1744255125979,25.59975741,115.27,115.23,16.42445741]
[1744255125980,0.5,115.26,115.23,16.42445741]
[1744255126376,0.5,115.28,115.24,16.42445741]
[1744255127078,9.1746,115.28,115.24,16.42445741]
[1744255127283,0.5,115.28,115.24,25.10185741]
[1744255127469,9.1738,115.29,115.24,8.6774]
[1744255127986,9.1738,115.29,115.25,16.42445741]
[1744255128165,0.5,115.29,115.25,16.42445741]
[1744255128365,0.5,115.29,115.26,16.42445741]
[1744255128782,0.5,115.3,115.27,16.42445741]
[1744255128962,0.5,115.31,115.28,8.6745]
[1744255129166,0.5,115.31,115.28,16.42445741]
[1744255129366,9.1724,115.31,115.27,25.09935741]
[1744255130002,25.59685741,115.31,115.25,8.6767]
[1744255130169,9.1724,115.31,115.27,16.42445741]
[1744255131365,9.1724,115.31,115.27,25.09965741]
[1744255131871,25.59685741,115.31,115.26,8.6756]
[1744255132085,16.92445741,115.3,115.26,81.2]
[1744255132281,0.5,115.29,115.23,8.6782]
[1744255132582,0.5,115.29,115.25,16.42445741]
[1744255132789,0.5,115.28,115.25,16.42445741]
[1744255133761,9.1746,115.28,115.23,106.30255741]
[1744255133966,25.59905741,115.28,115.23,106.30255741]
[1744255134183,9.1746,115.28,115.24,16.42445741]
[1744255134381,9.1746,115.28,115.23,89.8781]
[1744255134563,16.92445741,115.27,115.22,10.2]
[1744255134889,16.92445741,115.26,115.22,10.2]
[1744255135092,0.5,115.26,115.22,26.62445741]
[1744255135388,0.5,115.26,115.22,8.679]
[1744255135694,0.5,115.26,115.22,25.10345741]
[1744255136091,0.5,115.26,115.22,8.679]
[1744255136277,0.5,115.26,115.23,16.42445741]
[1744255136599,0.5,115.26,115.22,8.679]
[1744255137376,0.5,115.26,115.22,25.10345741]
[1744255137667,25.60075741,115.26,115.2,1.5074]
[1744255137888,25.60075741,115.26,115.21,16.42445741]
[1744255138087,0.5,115.25,115.2,16.42445741]
[1744255138294,0.5,115.25,115.19,8.6813]
[1744255138870,0.5,115.23,115.19,8.6813]
[1744255139070,0.5,115.23,115.21,16.42445741]
[1744255139588,0.5,115.24,115.21,16.42445741]
[1744255139885,0.5,115.24,115.2,8.6805]
[1744255140079,0.5,115.24,115.21,16.42445741]
[1744255140387,0.5,115.26,115.23,16.42445741]
[1744255140776,0.5,115.26,115.24,16.42445741]
[1744255140978,0.5,115.28,115.2,46.80625741]
[1744255141200,0.5,115.29,115.26,16.42445741]
[1744255141499,0.5,115.29,115.27,16.42445741]
[1744255142085,0.5,115.28,115.24,19.3371]
[1744255142284,0.5,115.29,115.26,16.42445741]
[1744255143272,0.5,115.29,115.24,19.3371]
[1744255143482,0.5,115.29,115.26,16.42445741]
[1744255143679,9.1738,115.29,115.26,16.42445741]
[1744255144010,0.5,115.27,115.24,27.08445741]
[1744255144221,0.5,115.25,115.2,89.8805]
[1744255144510,0.5,115.23,115.21,16.42445741]
[1744255145190,0.5,115.24,115.2,106.30485741]
[1744255145380,8.6775,115.24,115.2,16.42445741]
[1744255145575,0.5,115.23,115.19,19.3409]
[1744255145776,0.5,115.22,115.19,10.66]
[1744255146002,0.5,115.21,115.19,10.66]
[1744255146210,0.5,115.21,115.18,8.7447]
[1744255146211,0.5,115.21,115.18,0.063]
[1744255146436,0.5,115.19,115.18,0.063]
[1744255146783,0.5,115.16,115.09,8.6888]
[1744255146990,0.5,115.17,115.12,16.01003336]
[1744255147183,8.55282314,115.19,115.13,16.01003336]
[1744255147184,0.5,115.16,115.13,16.01003336]
[1744255147382,0.5,115.17,115.13,24.69513336]
[1744255147605,0.5,115.17,115.14,16.01003336]
[1744255147902,0.5,115.18,115.14,16.01003336]
[1744255148105,0.5,115.18,115.13,8.6851]
[1744255148321,16.9504,115.19,115.13,8.6851]
[1744255148322,0.5,115.17,115.14,16.01003336]
[1744255148515,6.6061,115.19,115.15,16.01003336]
[1744255148723,0.5,115.21,115.18,16.01003336]
[1744255148892,0.5,115.2,115.14,18.8096]
[1744255149218,0.5,115.2,115.17,16.01003336]
[1744255149518,0.5,115.21,115.18,24.69203336]
[1744255149714,0.5,115.21,115.18,8.682]
[1744255150108,0.5,115.22,115.19,25.59626717]
[1744255150421,0.5,115.26,115.21,25.59626717]
[1744255150596,0.5,115.25,115.22,25.59626717]
[1744255150907,0.5,115.26,115.22,25.59626717]
[1744255151114,0.5,115.25,115.19,92.26]
[1744255151283,0.5,115.26,115.24,25.59626717]
[1744255151488,0.5,115.26,115.24,34.27366717]
[1744255151715,7.1061,115.28,115.24,34.27366717]
[1744255151890,0.5,115.26,115.24,34.27366717]
[1744255152086,0.5,115.26,115.22,8.679]
[1744255152315,0.5,115.26,115.21,1.6595]
[1744255152316,25.59626717,115.26,115.21,8.6798]
[1744255152620,0.5,115.26,115.21,8.6798]
[1744255152917,26.09626717,115.26,115.21,34.27606717]
[1744255153089,0.5,115.26,115.23,25.59626717]
[1744255153294,0.5,115.26,115.22,25.59626717]
[1744255153485,0.5,115.26,115.23,34.27426717]
[1744255153695,41.37686717,115.28,115.23,34.27426717]
[1744255154092,41.37686717,115.28,115.23,8.678]
[1744255154413,26.09626717,115.25,115.2,8.6804]
[1744255154587,0.5,115.25,115.21,25.59626717]
[1744255154789,26.09626717,115.26,115.2,8.6804]
[1744255155009,0.5,115.25,115.21,25.59626717]
[1744255155417,0.5,115.25,115.2,8.6804]
[1744255155716,0.5,115.25,115.21,34.27566717]
[1744255156295,26.09626717,115.26,115.21,34.27566717]
[1744255156496,0.5,115.25,115.21,34.27566717]
[1744255156801,0.5,115.26,115.22,25.59626717]
[1744255156997,26.09626717,115.26,115.21,115.47566717]
[1744255157205,34.77246717,115.26,115.21,115.47566717]
[1744255157403,0.5,115.25,115.21,81.2]
[1744255157628,0.5,115.25,115.21,115.47576717]
[1744255158100,0.5,115.26,115.21,89.8795]
[1744255158298,0.5,115.26,115.22,25.59626717]
[1744255158512,0.5,115.26,115.21,89.8795]
[1744255158712,0.5,115.24,115.21,81.2]
[1744255159026,0.5,115.21,115.17,25.59626717]
[1744255159219,25.59626717,115.2,115.15,89.884]
[1744255159525,0.5,115.2,115.15,89.884]
[1744255159700,9.1803,115.21,115.15,89.884]
[1744255160025,26.09626717,115.2,115.15,89.884]
[1744255160334,26.09626717,115.19,115.14,20.1447]
[1744255160516,26.09626717,115.18,115.13,413.24136717]
[1744255160999,25.59626717,115.18,115.13,413.24136717]
[1744255161336,0.5,115.19,115.15,25.59626717]
[1744255161623,0.5,115.18,115.14,33.78066717]
[1744255162014,34.77766717,115.19,115.14,33.78066717]
[1744255162723,0.5,115.18,115.14,8.6844]
[1744255162926,9.1821,115.18,115.14,8.6844]
[1744255163104,34.77836717,115.18,115.13,378.96]
[1744255163306,0.5,115.16,115.13,378.96]
[1744255163617,26.09626717,115.16,115.13,81.2]
[1744255163821,26.09626717,115.16,115.11,126.94316717]
[1744255164203,0.5,115.16,115.12,25.59626717]
[1744255164517,0.5,115.16,115.11,115.48316717]
[1744255164724,0.5,115.16,115.13,8.6858]
[1744255165120,0.5,115.16,115.11,106.79626717]
[1744255165324,26.09626717,115.16,115.11,81.2]
[1744255165628,0.5,115.16,115.12,25.59626717]
[1744255166096,9.1837,115.16,115.12,25.59626717]
[1744255166302,0.5,115.16,115.12,25.59626717]
[1744255166823,34.77986717,115.16,115.11,106.79626717]
[1744255167018,0.5,115.15,115.11,115.48346717]
[1744255167629,0.5,115.15,115.11,89.8872]
[1744255167829,0.5,115.16,115.12,25.59626717]
[1744255168327,26.09626717,115.14,115.1,0.063]
[1744255168496,7.8968,115.13,115.1,0.063]
[1744255168702,26.09626717,115.11,115.1,0.063]
[1744255168928,9.1868,115.12,115.1,0.063]
[1744255169598,0.5,115.11,115.1,0.063]
[1744255169803,0.5,115.12,115.1,0.063]
[1744255170004,6.7403,115.13,115.1,0.063]
[1744255170326,15.4262,115.13,115.1,0.063]
[1744255170527,41.02246717,115.13,115.1,0.063]
[1744255170727,15.4262,115.13,115.1,0.063]
[1744255172633,0.5,115.11,115.1,0.063]
[1744255173340,26.09626717,115.12,115.1,0.063]
[1744255173711,0.5,115.12,115.1,0.063]
[1744255174130,15.4262,115.13,115.1,0.063]
[1744255174427,6.7403,115.13,115.1,0.063]
[1744255175626,0.5,115.12,115.1,0.063]
[1744255176035,6.7403,115.13,115.1,0.063]
[1744255176533,15.4267,115.13,115.1,0.063]
[1744255178327,26.09626717,115.12,115.1,0.063]
[1744255178742,26.09626717,115.11,115.1,0.063]
[1744255180237,9.1873,115.11,115.1,0.063]
[1744255180543,35.06789031,115.11,115.1,0.063]
[1744255180713,34.78356717,115.11,115.1,0.063]
[1744255180913,35.06789031,115.11,115.1,0.0001]
[1744255181313,53.71753917,115.11,115.1,0.0001]
[1744255181510,55.26393917,115.11,115.1,0.0001]
[1744255181716,0.28432314,115.1,115.09,0.063]
[1744255181930,26.09626717,115.1,115.09,0.063]
[1744255182453,34.78426717,115.1,115.09,0.063]
[1744255182817,9.188,115.1,115.09,0.063]
[1744255183150,34.78426717,115.1,115.09,0.063]
[1744255185351,9.188,115.1,115.09,0.063]
[1744255185734,34.78426717,115.1,115.09,0.063]
[1744255187734,34.84745783,115.1,115.09,0.063]
[1744255188955,35.13178097,115.1,115.09,0.063]
[1744255189348,25.51312199,115.1,115.09,0.063]
[1744255189867,25.22780378,115.1,115.09,0.063]
[1744255190761,0.5,115.07,115.05,0.063]
[1744255190941,0.5,115.06,115.05,0.063]
[1744255191631,0.5,115.07,115.05,0.063]
[1744255191960,9.1911,115.06,115.05,0.063]
[1744255192135,0.5,115.06,115.05,0.063]
[1744255192337,9.1911,115.06,115.05,0.063]
[1744255192859,0.5,115.06,115.05,0.063]
[1744255196584,9.1911,115.06,115.05,0.063]
[1744255197971,0.5,115.06,115.05,0.063]
[1744255198750,0.5,115.07,115.05,0.063]
[1744255201085,0.5,115.1,115.06,16.03980378]
[1744255201290,9.187,115.12,115.09,16.03980378]
[1744255201462,9.187,115.12,115.08,16.03980378]
[1744255201661,0.5,115.11,115.06,1.5519]
[1744255201880,0.5,115.11,115.07,16.03980378]
[1744255202092,0.5,115.11,115.07,8.6903]
[1744255202282,9.187,115.12,115.08,16.03980378]
[1744255203082,9.187,115.12,115.09,16.03980378]
[1744255203579,9.187,115.12,115.08,81.2]
[1744255203895,0.5,115.11,115.08,81.2]
[1744255204191,0.5,115.1,115.06,16.03980378]
[1744255204600,0.5,115.09,115.05,81.263]
[1744255204766,0.5,115.08,115.05,97.30280378]
[1744255205386,0.5,115.09,115.05,97.30280378]
[1744255205570,0.5,115.07,115.05,81.263]
[1744255205970,8.6911,115.06,115.05,0.063]
[1744255206180,9.1911,115.06,115.05,0.063]
[1744255206568,0.5,115.06,115.05,0.063]
[1744255208286,25.23090378,115.06,115.05,0.063]
[1744255208489,25.51522692,115.06,115.05,0.063]
[1744255209968,0.5,115.02,115.01,0.063]
[1744255210168,65.39257578,115.06,115.01,0.063]
[1744255210169,0.5,115.06,115.01,16.10280378]
[1744255210396,0.5,115.05,115.01,0.063]
[1744255210578,0.5,115.05,115.02,16.03980378]
[1744255210777,0.5,115.05,115.03,16.03980378]
[1744255211170,0.5,115.05,115.01,0.063]
[1744255211367,0.5,115.04,115.01,0.063]
[1744255211602,0.5,115.03,115.01,16.10280378]
[1744255211984,0.5,115.04,115.01,16.10280378]
[1744255212286,9.1933,115.03,115.01,16.10280378]
[1744255212799,9.193,115.04,115.01,0.063]
[1744255213006,0.5,115.02,115.01,0.063]
[1744255214690,9.1941,115.02,115.01,0.063]
[1744255215389,0.5,115.02,115.01,0.063]
[1744255215794,9.1941,115.02,115.01,0.063]
[1744255216092,0.5,115.02,115.01,0.063]